Cogmind - Beta 17 @@@ ROGUE MODE // 2026.07.18 @ 12:47:37 Player: Scuttle Result: Destroyed by G-47 Trooper with Particle Gun Performance ------------- Evolutions (1) 500 Regions Visited (2) 400 Robots Destroyed (65) 325 Value Destroyed (1547) 1547 Prototype IDs (7) 140 Alien Tech Used (0) 0 Bonus (92) 92 TOTAL SCORE: 3004 Bonus ------- High Alert Combat Kills 92 Cogmind --------- Core Integrity 0/400 Matter 278/300 Energy 90/100 System Corruption 7% Temperature Cool (9) Movement Core (50) Location -9/Materials Parts ------- > --- POWER (1) -------- (None) > --- PROPULSION (3) --- (None) > --- UTILITY (3) ------ (None) > --- WEAPON (2) ------- Mini Grenade Launcher > --- INVENTORY (5) ---- Improved Ion Engine Light Deuterium Engine Hardened Light Armor Plating Improved Medium Laser Improved Medium Laser Peak State ------------ > --- POWER ------------ Improved Ion Engine > --- PROPULSION ------- Light Treads Light Treads Compact Wheel > --- UTILITY ---------- Improved Heat Sink Large Storage Unit Targeting Computer > --- WEAPON ----------- Improved Medium Laser Improved Medium Laser > --- INVENTORY -------- Ion Engine Light Deuterium Engine Compact Wheel Salvage Targeting Computer Hardened Light Armor Plating Hardened Light Armor Plating Particle Cannon Heavy Assault Rifle Heavy Assault Rifle Heavy Assault Rifle Mini Grenade Launcher [Rating: 18] Favorites ----------- Power Ion Engine Engine Ion Engine Power Core Light Nuclear Core Propulsion Light Treads Treads Light Treads Wheel Compact Wheel Utility Improved Heat Sink Device Improved Heat Sink Storage Large Storage Unit Processor Targeting Computer Weapon Small Laser Energy Gun Small Laser Ballistic Gun Assault Rifle Launcher Mini Grenade Launcher Build | -11 -10 -9 ------- Run | Yrd Mat Mat Slots Evolved 2 | . . 2 Power . | . . . Propulsion 1 | . . 1 Utility 1 | . . 1 Weapon . | . . . Parts Attached 36 | 5 10 21 Power 6 | 1 2 3 Engine 5 | 1 1 3 Core 1 | . 1 . Reactor . | . . . Propulsion 12 | 2 2 8 Treads 6 | 1 2 3 Leg . | . . . Wheel 6 | 1 . 5 Hover . | . . . Flight . | . . . Utility 5 | . 4 1 Device 2 | . 2 . Storage 2 | . 1 1 Processor 1 | . 1 . Hackware . | . . . Protection . | . . . Artifact . | . . . Weapon 13 | 2 2 9 Energy Gun 8 | 1 2 5 Energy Cannon . | . . . Ballistic Gun 4 | 1 . 3 Ballistic Cannon . | . . . Launcher 1 | . . 1 Special Weapon . | . . . Impact Weapon . | . . . Slashing Weapon . | . . . Piercing Weapon . | . . . Special Melee Weapon . | . . . Unidentified Prototypes . | . . . Corrupted Parts 1 | . 1 . System Corruption 1 | . 1 . Parts Lost 15 | . 2 13 Power 2 | . 1 1 Propulsion 9 | . 1 8 Utility 2 | . . 2 Weapon 2 | . . 2 Highest Loss Streak 8 | . 2 8 To Critical Strikes 1 | . . 1 Average Backups 6 | 1 3 8 Power 1 | . 1 1 Propulsion 2 | 1 2 1 Utility 1 | . . 2 Weapon 2 | . . 2 Tool/Special . | . . . Unused Backups 17 | . 2 15 Power 4 | . 1 3 Propulsion 4 | . 1 3 Utility 3 | . . 3 Weapon 6 | . . 6 Tool/Special . | . . . Average Slot Usage (%) 93 | . 84 98 Engine 9 | . 5 10 Core 2 | . 8 . Treads 22 | . 24 21 Wheel 8 | . 3 10 Device 10 | . 9 10 Storage 7 | . . 11 Processor 8 | . 4 11 Energy Gun 20 | . 23 19 Ballistic Gun 3 | . 4 2 Peak Build Rating 18 | 5 12 18 Average Rating 13 | 4 9 15 On Entrance 5 | . 5 10 Avg Prop Armor Cover (%) 19 | 14 13 20 Naked Turns . | . . . Heaviest Build 34 | 9 21 34 Greatest Support 40 | 20 40 20 Greatest Overweight (x) 2 | . . 2 Average Overweight (x) . | . . 1 Largest Inventory Capacity 15 | 5 10 15 Average Capacity 11 | 5 5 14 Most Carried 13 | 3 6 13 Average Carried 6 | 2 3 8 Final Capacity 10 | 5 10 5 Final Carried 6 | 3 6 5 Class Distribution -------------------- 61% | Scavenger-Mutant 38% | Mutant Dominant Class ---------------- Scavenger-Mutant | -10/Materials Scavenger-Mutant | -9/Materials Resources | -11 -10 -9 ----------- Run | Yrd Mat Mat Matter Collected 870 | 265 175 430 Remotely . | . . . Salvage Created 2450 | 68 483 1899 Parts 147 | 3 23 121 Haulers Intercepted 6 | . 1 5 Recyclers Shooed 4 | . . 4 Parts Field Recycled . | . . . Retrieved Matter . | . . . Parts Self-Destructed . | . . . Prevented . | . . . Parts Restored . | . . . Kills | -11 -10 -9 ------- Run | Yrd Mat Mat Combat Hostiles Destroyed 45 | . 9 36 Guns 35 | . 9 26 AOE 9 | . . 9 Classes Destroyed 13 | 1 2 10 Worker 2 | . . 2 Builder 2 | . . 2 Tunneler 1 | . . 1 Hauler 6 | . 1 5 Recycler 6 | 1 1 4 Operator 1 | . . 1 Watcher 2 | . . 2 Swarmer 12 | . . 12 Grunt 20 | . 9 11 Brawler 1 | . . 1 Duelist 2 | . . 2 Protector 1 | . . 1 Sentry 9 | . . 9 Best Kill Streak 15 | 1 5 15 Combat Bots Only 12 | . 5 12 Max Kills in Single Turn 3 | 1 1 3 Gunslinging . | . . . Exploded 2 | . . 2 Melee . | . . . Uniques/NPCs Destroyed . | . . . Combat | -11 -10 -9 -------- Run | Yrd Mat Mat Hostile Shots Fired 208 | . 48 160 Missed 52 | . 13 39 Hits 156 | . 35 121 Melee 10 | . . 10 Projectile 146 | . 35 111 Critical Strikes 6 | . 2 4 Damage Taken 2284 | . 447 1837 Core 528 | . 118 410 Absorbed by Shields . | . . . Core Remaining (%) 76 | 100 52 . Volleys Fired 167 | 5 33 129 Largest 2 | 2 2 2 Hottest 115 | 60 105 115 Shots Fired 325 | 10 66 249 Gun 320 | 10 66 244 Cannon . | . . . Launcher 5 | . . 5 Special . | . . . Kinetic 68 | 5 23 40 Thermal 240 | . 36 204 Explosive 5 | . . 5 Electromagnetic 12 | 5 7 . Robot Hit Streak 16 | 3 12 16 Robot Miss Streak 4 | 3 1 4 Penetration Max . | . . . Secondary Targets 4 | . 1 3 Max Gunslinging Chain 1 | . 1 1 Shots Hit Robots 229 | 5 54 170 Core Hits 110 | 2 24 84 Critical Kills . | . . . Critical Parts Destroyed 2 | . 1 1 Critical Strikes 9 | . 2 7 Burn 7 | . 1 6 Destroy 2 | . 1 1 Melee Attacks . | . . . Impact . | . . . Slashing . | . . . Piercing . | . . . Sneak Attacks . | . . . Combat Hostiles . | . . . Follow-up Attacks . | . . . Damage Inflicted 4128 | 61 684 3383 Guns 3246 | 61 684 2501 Cannons . | . . . Explosions 882 | . . 882 Melee . | . . . Ramming . | . . . Kinetic 664 | 36 249 379 Thermal 2489 | . 367 2122 Explosive 700 | . . 700 Electromagnetic 275 | 25 68 182 Impact . | . . . Slashing . | . . . Piercing . | . . . Highest Corruption 7 | . 1 7 Average Corruption 1 | . 1 3 Corruption Purged . | . . . Corruption Blocked . | . . . Effects 6 | . 5 1 Message Errors 2 | . 2 . Matter Fused 3 | . 2 1 Parts Rejected 1 | . 1 . Overload Shots . | . . . Overflow Damage 65 | . . 65 Projectiles . | . . . Explosions 65 | . . 65 Melee . | . . . Knockbacks . | . . . Impact . | . . . Kinetic . | . . . Secondary . | . . . Self-Inflicted Damage 167 | . . 167 Shots 4 | . . 4 Rammed . | . . . Targets Rammed . | . . . Kicked . | . . . Crushed . | . . . Highest Temperature 108 | . 108 48 Average Temperature 23 | . 35 15 Received Heat Transfer 726 | . 285 441 Siege Activations . | . . . Martial Activations . | . . . Shielding Activations . | . . . Robots Disrupted . | . . . Combat Hostiles . | . . . Robots Corrupted . | . . . Combat Hostiles . | . . . Parts Fried 2 | . 1 1 Impact Corruptions . | . . . Robots Melted 1 | . . 1 Combat Hostiles 1 | . . 1 Parts Melted 15 | . 3 12 Heat Transferred 6297 | . 907 5390 Parts Sabotaged . | . . . Parts Stolen . | . . . Parts Stripped . | . . . Power Chain Reactions . | . . . Alert | -11 -10 -9 ------- Run | Yrd Mat Mat Maximum Alert Level 2 | . . 2 Low Security (%) 64 | 100 100 45 Level 1 29 | . . 44 Level 2 6 | . . 9 Level 3 . | . . . Level 4 . | . . . Level 5 . | . . . High Security . | . . . Max Security . | . . . Peak Influence 579 | 5 94 579 Initial . | . . . Average 126 | 1 37 176 Influence Increases 1373 | 5 271 1097 Destroy 0b10 Robot/C 880 | . 180 700 Destroy 0b10 Robot/NC 105 | 5 10 90 Destroy Leader 226 | . 42 184 Successful Hack 32 | . 8 24 Select Force Hacks 30 | . 30 . Disable Machine 30 | . . 30 Destroy Structure 40 | . 1 39 Lose Combat Pursuer 30 | . . 30 Influence Decreases 794 | 5 271 518 Time Decay 644 | 5 251 388 Lost Part 150 | . 20 130 Squads Dispatched 6 | . 2 4 Investigation 1 | . 1 . Extermination . | . . . Reinforcement 4 | . 1 3 Assault 1 | . . 1 Garrison . | . . . Intercept . | . . . Searches Triggered . | . . . Construction Impeded 1 | . . 1 Haulers Reinforced . | . . . Active Scanning Responses . | . . . Cargo Convoy Interrupts . | . . . Stealth | -11 -10 -9 --------- Run | Yrd Mat Mat Distress Signals 7 | . . 7 Communications Jammed . | . . . Distress Signals . | . . . Times Spotted 68 | . 15 53 Peak Tracking Total 7 | . 7 7 Tactical Retreats 2 | . . 2 Traps | -11 -10 -9 ------- Run | Yrd Mat Mat Traps Triggered . | . . . Indirectly . | . . . Trap Hack Attempts . | . . . Triggered . | . . . Disarmed . | . . . Reprogrammed . | . . . Reused . | . . . Traps Extracted . | . . . Installed . | . . . Triggered . | . . . Machines | -11 -10 -9 ---------- Run | Yrd Mat Mat Machines Disabled 2 | . . 2 Max in Single Turn 1 | . . 1 Machines Repaired . | . . . Machines Dismantled . | . . . Machines Sabotaged . | . . . Overloaded Fab Kills . | . . . Hacking | -11 -10 -9 --------- Run | Yrd Mat Mat Machines Accessed 13 | . 6 7 Terminals 8 | . 4 4 Fabricators . | . . . Repair Stations 2 | . 1 1 Recycling Units 2 | . 1 1 Scanalyzers 1 | . . 1 Garrison Access . | . . . Total Hacks 31 | . 13 18 Successful 15 | . 6 9 Failed 15 | . 7 8 Catastrophic 1 | . 1 . Database Lockouts 1 | . . 1 Manual 17 | . 11 6 Terminals 21 | . 10 11 Fabricators . | . . . Repair Stations 5 | . 2 3 Recycling Units 3 | . 1 2 Scanalyzers 2 | . . 2 Garrison Access . | . . . Terminal Hacks 5 | . 2 3 Robot Analysis 1 | . 1 . Prototype ID Bank 4 | . 1 3 Fabricator Hacks . | . . . Repair Station Hacks 1 | . . 1 Scan Component 1 | . . 1 Recycling Unit Hacks 1 | . . 1 Retrieve Components 1 | . . 1 Scanalyzer 2 | . . 2 Retrieve Study 2 | . . 2 Garrison Access Hacks . | . . . Unauthorized Hacks 6 | . 4 2 Terminals 5 | . 3 2 Botnet 5 | . 3 2 Fabricators . | . . . Repair Stations . | . . . Recycling Units 1 | . 1 . Tunnel 1 | . 1 . Scanalyzers . | . . . Garrison Access . | . . . Data Cores Recovered . | . . . Used . | . . . Hacking Detections 10 | . 5 5 Full Trace Events . | . . . Feedback Events . | . . . Feedback Blocked . | . . . Robot Schematics Acquired . | . . . Robots Built . | . . . Authchips . | . . . Time . | . . . Total Robot Build Rating . | . . . Part Schematics Acquired . | . . . Parts Built . | . . . Authchips . | . . . Time . | . . . Total Part Build Rating . | . . . Part Studies Acquired 2 | . . 2 Parts Repaired . | . . . Time . | . . . Parts Recycled . | . . . Recycled Matter . | . . . Retrieved Matter . | . . . Retrieved Components 9 | . . 9 Parts Scanalyzed . | . . . Part Schematics Acquired . | . . . Parts Damaged . | . . . Bothacking | -11 -10 -9 ------------ Run | Yrd Mat Mat Used RIF Installer . | . . . Robots Hacked . | . . . Non-combat . | . . . Combat . | . . . Robot Hacks Applied . | . . . Relay Couplers Released . | . . . Fabnet Peak Effective % . | . . . Robots Rewired . | . . . Allies Hacked . | . . . Hacks Repelled . | . . . Allies | -11 -10 -9 -------- Run | Yrd Mat Mat Total Allies . | . . . Largest Group . | . . . Highest-Rated Group . | . . . Highest-Rated Ally . | . . . Total Orders . | . . . Ally Attacks . | . . . Total Damage . | . . . Kills . | . . . Allies Corrupted . | . . . Allies Melted . | . . . Intel | -11 -10 -9 ------- Run | Yrd Mat Mat Active Infowar (turns) . | . . . Robot Analysis Total 1 | . 1 . Derelict Logs Recovered . | . . . Drone Launches . | . . . Drone Recoveries . | . . . Exploration | -11 -10 -9 ------------- Run | Yrd Mat Mat Turns Passed 1947 | 61 627 1259 Spaces Moved 1001 | 37 340 624 Core 5 | 4 1 . Treads 257 | 1 248 8 Legs . | . . . Wheels 739 | 32 91 616 Hover . | . . . Flight . | . . . Fastest Speed 50 | 50 50 105 Average Speed 123 | 96 143 114 Slowest Speed 240 | 160 160 240 Overloaded Moves . | . . . Propulsion Burnouts . | . . . Robots Hopped . | . . . Potential Cave-ins . | . . . Cave-ins Triggered . | . . . Exploration Rate (%) 39 | 3 63 51 Regions Visited 2 Branch Regions . Pre-discovered Areas 1 | . 1 . Known Exits Taken . | . . . Unknown Exits Taken 2 | 1 1 . Scrap Searched . | . . . Spaces Dug . | . . . Terrain Destroyed 40 | . . 40 Melee . | . . . Projectile . | . . . AOE 40 | . . 40 Terrain Rammed . | . . . Walls Destroyed . | . . . Machines Disabled . | . . . Actions | -11 -10 -9 --------- Run | Yrd Mat Mat Total 1378 | 49 412 917 Wait 110 | . 13 97 Move 999 | 36 339 624 Hop . | . . . Pick Up 26 | 3 6 17 Fast Attach 19 | 5 9 5 Attach 9 | . 1 8 Detach 5 | . 2 3 Swap 20 | . 3 17 Drop 23 | . 6 17 Fire 167 | 5 33 129 Melee . | . . . Ram . | . . . Kick . | . . . Crush . | . . . Escape Stasis . | . . . Rewire . | . . . Trap . | . . . Miscellaneous . | . . . Route ------- -11/Scrapyard -10/Materials (discovered 2 exits: *Mat x2) -9/Materials (discovered 2 exits: [*Min x2]) History --------- Turn | Location | Event 12 | -11/Scrapyard | Discovered new exit (range 15) 62 | -11/Scrapyard | Entered Materials 418 | -10/Materials | Discovered new exit (range 16) 529 | -10/Materials | Build established: Scavenger-Mutant 643 | -10/Materials | Discovered new exit (range 9) 689 | -10/Materials | Entered another Materials area 689 | -9/Materials | Evolved 2 slots: Propulsion x1, Utility x1 1295 | -9/Materials | Discovered new exit (range 8) 1551 | -9/Materials | Central database locked down 1802 | -9/Materials | Build established: Mutant 1857 | -9/Materials | Discovered new exit (range 16) 1869 | -9/Materials | Destroyed 12 combat bots 1889 | -9/Materials | First assault squad dispatched 1934 | -9/Materials | Core integrity fell below 50% 1945 | -9/Materials | Core integrity fell below 20% 1948 | -9/Materials | Destroyed by G-47 Trooper with Particle Gun Last Messages --------------- 01937_ G-47 Trooper misfires. 01938_ Com. Wheel+ destroyed. 01938_ Acquired 26 matter. 01941_ R-06 Scavenger collects Corrupted Heat Sink. 01943_ Critical hit (Smash). 01943_ Imp. Heat Sink destroyed. 01943_ Targeting Computer destroyed. 01943_ System corrupted by crushing effect (+1). 01943_ System corrupted by crushing effect (+5). 01944_ B-36 Bruiser destroyed. 01944_ R-06 Scavenger inserts Corrupted Heat Sink into recycling unit. 01945_ System corrupted: Matter fused (-7). 01946_ Melee Analysis Suite fried. 01946_ L-31 Rogue destroyed. 01946_ Lgt. Treads destroyed. 01946_ Destroyed Lgt. Treads. 01946_ I-25 Savior destroyed. 01946_ U-05 Engineer destroyed. 01947_ R-06 Scavenger collects Lgt. Ion Engine. 01948_ Dropped Lrg. Storage Unit. Map ----- +----------------------------------------------------+ | ?????????????????????????# """ """ # #????? | | ??????????????????######## # [ """ #????? | | ??????????????????# #? # [ """ #????? | | ??????????????????+!""" #??? # """ #????? | | ???????????????? ?#!""" #????? # ###### | | ??????????????# ?#%""" ########+#########+## | | ??????????????# #!!! # % % | | ??????????????# #!""" + ! < | | ??????????????# # """ # " % % % | | ??????????????# # """ # "" #########/## | | ??????????????# # # "" #?# # "|"| | | ??????????????# # # """ #?# ! #""|"| | | ??????????????# #] # "" #?# ###### | | ?????######???# # # """ #?# + | | ???? ??# ####### """% #?# ###### | | ???? ?## ###### """ #?# #????? | | ???? # %= ## " #?# #????? | | ???# # [%[ #?# #????? | | ???# !%%! #?# #????? | | ???# *=%=!! #?##########????? | | ???# = = ########## #???????????????? | | ???# %= # % #####?????# #???????????????? | | ?????######## ####???????# #???????????????? | | ????# = #??######?# #####???????????? | | ????# T ##??# [[]# ????????? | | ????# # [######!@%* #????????? | | ????# #% ## !%== #????????? | | ????########### ## !g[ ########???????????? | | ???????####### # """ ! #?????????????????? | | ??? # """!% ##?????????????????? | | ??? [ k%""" %! #??????????????????? | | ??? #*!*ru=u ##??????????????????? | | ???? ####### %=#!"Y"|=% #???????????????????? | | ???? ????????## =## """!* #???????????????????? | | ??????????????# ############???????????????????? | | ??????????????# #??????????????????????????????? | | ??????????????# ???????????????????????????????? | | ??????????????# ???????????????????????????????? | | ??????????????# ???????????????????????????????? | | ??????????????# ???????????????????????????????? | | ?????????????? ???????????????????????????????? | | ?????????????? ???????????????????????????????? | | ?????????????? < ???????????????????????????????? | | ?????????????? ????????????????????????????????? | | ???????????????? ????????????????????????????????? | | ?????????????????????????????????????????????????? | | ?????????????????????????????????????????????????? | | ?????????????????????????????????????????????????? | | ?????????????????????????????????????????????????? | | ?????????????????????????????????????????????????? | +----------------------------------------------------+ Best States ------------- Heat Dissipation 42 Energy Generation 14 Energy Capacity 265 Matter Stores 300 Matter Capacity 300 Sight Range 16 Terrain Scan Density 10 Evasion (%) 40 Targeting Accuracy 5 Recoil Reduction 2 Item Schematics ----------------- None Robot Schematics ------------------ None Fabricated ------------ Nothing Repaired ---------- Nothing Studied --------- Arm. Wheel | -9/Materials | Hacked Com. Wheel | -9/Materials | Hacked Alien Tech Used ----------------- None Achievements -------------- None Challenges ------------ None Game ------ Seed MasterChromaticBallwheel Manual? 0 Play Time 00:17:48 Cumulative 530.1 hours Start 2026.07.18 @ 12:30:34 End 2026.07.18 @ 12:47:37 Sessions 1 Manual Loads 0 Difficulty Rogue Special Mode None Game No. 228 Rogue 228 Adventurer 0 Explorer 0 Win Type - Total 30 Types 14/3/4/2/1/2/1/1/1/1 Lore% 90 Gallery% 80 Achievement% 76 Wizard Run 0 Options --------- Layout 0 ASCII 0 Keyboard 1 Movement Arrows Keybinds 0 Fullscreen 2 Font 18/Terminus Map View 76x50 Zoom Use 0% Tactical HUD 1 Map Filters BRIGHTNESS(90)|SATURATION(90) Filters NONE Steam 1 RUN: f9c209e8-c287-42dc-baa5-c063226bbece